bitfinex/quotes_SOLUSD_20250429
["timestamp","ask_amount","ask_price","bid_price","bid_amount"]
[1745945520561,42.86047018,149.07,149.06,0.063]
[1745945521862,43.00263175,149.07,149.06,0.063]
[1745945522057,18.64964886,149.07,149.06,0.063]
[1745945522671,18.79181043,149.1,149.06,24.27382132]
[1745945522844,43.00263175,149.1,149.06,24.27382132]
[1745945523164,43.00263175,149.1,149.06,0.063]
[1745945523368,18.64964886,149.07,149.06,0.063]
[1745945523869,43.00263175,149.07,149.06,0.063]
[1745945524557,49.71088961,149.07,149.06,0.063]
[1745945528977,50.13737432,149.07,149.06,0.063]
[1745945529493,51.50096843,149.05,149.04,0.063]
[1745945529657,82.62263175,149.05,149.04,0.063]
[1745945530675,89.33178975,149.05,149.04,0.063]
[1745945531451,56.62263175,149.05,149.04,0.063]
[1745945533398,32.26964886,149.05,149.04,0.063]
[1745945533559,0.14216157,149.08,149.04,24.27382132]
[1745945533762,18.64964886,149.08,149.06,24.21082132]
[1745945534087,18.64964886,149.09,149.06,24.21082132]
[1745945535085,18.64964886,149.08,149.05,24.21082132]
[1745945535562,18.64964886,149.08,149.05,30.91995234]
[1745945537590,42.86047018,149.08,149.04,24.27382132]
[1745945538588,42.86047018,149.08,149.04,0.063]
[1745945539193,0.14216157,149.08,149.04,0.063]
[1745945539380,18.64964886,149.07,149.04,0.063]
[1745945541281,18.64964886,149.07,149.04,24.27382132]
[1745945541482,18.64964886,149.07,149.04,30.98298122]
[1745945541787,18.64964886,149.08,149.05,24.21082132]
[1745945542700,18.64964886,149.1,149.07,24.21082132]
[1745945542997,18.79181043,149.11,149.07,24.21082132]
[1745945543292,18.64964886,149.11,149.08,24.21082132]
[1745945543907,18.64964886,149.11,149.09,6.70735797]
[1745945544608,0.03,149.15,149.1,48.42164264]
[1745945544790,0.03,149.15,149.1,24.21082132]
[1745945545292,0.03,149.15,149.14,24.21082132]
[1745945545913,0.03,149.15,149.14,30.91593061]
[1745945546411,0.03,149.15,149.14,6.70510929]
[1745945548490,18.67964886,149.15,149.13,6.70547743]
[1745945548807,18.67964886,149.15,149.12,30.91673371]
[1745945549014,0.03,149.15,149.14,24.21082132]
[1745945549819,0.03,149.15,149.13,24.21082132]
[1745945550483,0.03,149.15,149.14,30.91593061]
[1745945552104,0.03,149.15,149.14,6.70510929]
[1745945552317,0.03,149.15,149.14,30.91593061]
[1745945552935,0.03,149.15,149.14,6.70510929]
[1745945553235,0.03,149.15,149.12,16.76489259]
[1745945553421,0.03,149.15,149.13,24.21082132]
[1745945554428,0.03,149.15,149.14,24.21082132]
[1745945555737,0.03,149.15,149.14,30.91593061]
[1745945556841,0.03,149.15,149.14,6.70510929]
[1745945557004,0.03,149.15,149.14,30.91593061]
[1745945557623,18.64964886,149.14,149.08,1.6172]
[1745945557822,24.21082132,149.11,149.07,6.70825786]
[1745945558109,24.21082132,149.13,149.08,24.21082132]
[1745945558309,50.21082132,149.14,149.09,24.21082132]
[1745945558515,0.17216157,149.15,149.07,6.70825786]
[1745945558516,18.82181043,149.15,149.11,24.21082132]
[1745945558718,43.03263175,149.15,149.11,24.21082132]
[1745945558933,42.86047018,149.13,149.08,24.21082132]
[1745945559238,24.21082132,149.11,149.07,30.91907918]
[1745945559623,18.64964886,149.11,149.08,24.21082132]
[1745945560131,24.21082132,149.1,149.04,27.6219]
[1745945560329,24.21082132,149.09,149.05,30.91979658]
[1745945560517,24.21082132,149.09,149.04,27.6219]
[1745945560518,24.21082132,149.09,149.04,34.33134174]
[1745945560716,24.21082132,149.08,149.04,32.54216306]
[1745945561300,24.21082132,149.09,149.05,24.21082132]
[1745945561502,18.64964886,149.08,149.05,24.21082132]
[1745945561906,42.86047018,149.08,149.04,32.54216306]
[1745945562135,42.86047018,149.08,149.04,24.27382132]
[1745945562838,42.86047018,149.08,149.04,0.063]
[1745945565134,18.79181043,149.1,149.07,24.21082132]
[1745945565342,18.64964886,149.1,149.08,24.21082132]
[1745945565924,24.21082132,149.14,149.09,24.21082132]
[1745945566233,24.21082132,149.14,149.1,24.21082132]
[1745945567943,24.21082132,149.14,149.09,30.91790315]
[1745945568140,18.82181043,149.15,149.11,24.21082132]
[1745945568438,43.03263175,149.15,149.11,24.21082132]
[1745945568844,18.64964886,149.13,149.1,24.21082132]
[1745945569046,18.64964886,149.13,149.1,30.91741628]
[1745945569541,42.89047018,149.15,149.11,24.21082132]
[1745945569940,18.67964886,149.15,149.13,24.21082132]
[1745945570823,0.03,149.15,149.13,24.21082132]
[1745945571042,0.03,149.15,149.13,30.91613022]
[1745945571339,0.03,149.15,149.14,24.21082132]
[1745945572750,0.03,149.15,149.13,6.7053089]
[1745945572925,0.03,149.15,149.14,24.21082132]
[1745945574542,0.03,149.15,149.14,30.91593061]
[1745945575828,0.03,149.15,149.12,6.70562504]
[1745945576038,0.03,149.15,149.12,24.21082132]
[1745945576247,0.03,149.15,149.11,6.70630918]
[1745945576452,0.03,149.15,149.11,30.9171305]
[1745945577238,0.03,149.15,149.12,24.21082132]
[1745945578161,18.64964886,149.14,149.11,24.21082132]
[1745945578747,0.03,149.15,149.1,73.68483558]
[1745945578949,0.03,149.15,149.14,24.35298289]
[1745945579285,0.03,149.15,149.14,32.68303703]
[1745945580255,0.03,149.15,149.14,31.20025375]
[1745945582171,0.03,149.17,149.16,24.21082132]
[1745945583144,1e-08,149.17,149.16,24.49514446]
[1745945583470,1e-08,149.17,149.16,50.18853678]
[1745945584055,1e-08,149.17,149.16,82.89274702]
[1745945585671,1e-08,149.19,149.18,50.63730603]
[1745945586652,1e-08,149.21,149.2,24.21082132]
[1745945587766,1e-08,149.21,149.2,30.91323418]
[1745945587945,1e-08,149.21,149.2,31.19755732]
[1745945590584,1e-08,149.21,149.2,30.91323418]
[1745945594289,1e-08,149.21,149.2,31.19755732]
[1745945594581,1e-08,149.21,149.2,31.33971889]
[1745945594972,1e-08,149.23,149.21,24.63730603]
[1745945595179,1e-08,149.23,149.22,50.35298289]
[1745945595571,1e-08,149.24,149.23,48.84812735]
[1745945596481,1e-08,149.24,149.23,55.54919281]
[1745945597276,1e-08,149.24,149.23,31.19620992]
[1745945597478,1e-08,149.24,149.23,6.9853886]
[1745945597686,1e-08,149.24,149.23,31.19620992]
[1745945598994,1e-08,149.24,149.23,55.54919281]
[1745945599992,1e-08,149.24,149.23,31.33837149]
[1745945605209,1e-08,149.24,149.23,6.70106546]
[1745945605371,1e-08,149.24,149.23,30.91188678]
[1745945605991,1e-08,149.24,149.23,31.19620992]
[1745945606303,1e-08,149.24,149.23,30.91188678]
[1745945613883,1e-08,149.24,149.23,6.70106546]
[1745945614085,1e-08,149.24,149.23,30.91188678]
[1745945614312,1e-08,149.24,149.23,6.70106546]
[1745945614608,1e-08,149.24,149.23,30.91188678]
[1745945615510,1e-08,149.24,149.19,13.6]
[1745945615810,15.09340187,149.24,149.2,15.09340186]
[1745945616306,15.09340187,149.24,149.17,16.82143137]
[1745945616307,1e-08,149.24,149.21,15.09340186]
[1745945617611,1e-08,149.24,149.21,21.79534543]
[1745945618711,1e-08,149.24,149.21,15.09340186]
[1745945619012,1e-08,149.24,149.21,21.79529663]
[1745945619315,1e-08,149.24,149.2,21.79581472]
[1745945622295,1e-08,149.24,149.21,21.79535222]
[1745945622501,1e-08,149.24,149.22,15.09340186]
[1745945623620,1e-08,149.24,149.23,15.09340186]
[1745945624999,1e-08,149.24,149.23,21.79446732]
[1745945626317,1e-08,149.24,149.22,15.09340186]
[1745945626506,18.64964887,149.24,149.2,15.09340186]
[1745945626917,33.74305073,149.24,149.2,21.79561711]
[1745945627327,15.09340186,149.23,149.19,15.09340186]
[1745945627637,18.64964886,149.22,149.19,21.79616373]
[1745945627809,18.64964886,149.22,149.19,15.09340186]
[1745945628011,18.64964886,149.22,149.18,15.09340186]
[1745945628219,33.74305072,149.22,149.18,15.09340186]
[1745945628419,15.09340186,149.21,149.17,15.15640186]
[1745945628626,33.74305072,149.2,149.17,0.063]
[1745945629019,18.64964886,149.2,149.17,0.063]
[1745945629642,18.64964886,149.2,149.17,15.15640186]
[1745945629841,26.00000001,149.24,149.19,15.09340186]
[1745945629842,18.64964887,149.24,149.19,15.09340186]
[1745945630031,18.64964887,149.24,149.21,15.09340186]
[1745945630228,1e-08,149.24,149.22,15.09340186]
[1745945630932,1e-08,149.24,149.23,15.09340186]
[1745945631346,1e-08,149.24,149.22,21.79474345]
[1745945632918,1e-08,149.24,149.23,21.79446732]
[1745945633431,1e-08,149.24,149.23,15.09340186]
[1745945633630,1e-08,149.24,149.23,24.14866624]
[1745945634845,1e-08,149.24,149.22,24.14866624]
[1745945635426,1e-08,149.24,149.21,30.85047289]
[1745945635622,18.64964887,149.24,149.21,24.14866624]
[1745945635940,42.79831511,149.24,149.2,30.85097537]
[1745945636250,24.14866624,149.23,149.2,6.70230913]
[1745945636618,24.14866625,149.24,149.2,30.85097537]
[1745945637458,1e-08,149.24,149.21,30.85058056]
[1745945637642,1e-08,149.24,149.22,24.14866624]
[1745945638331,1e-08,149.24,149.23,24.14866624]
[1745945638737,1e-08,149.24,149.21,6.70191432]
[1745945638738,1e-08,149.24,149.22,24.14866624]
[1745945639451,1e-08,149.24,149.22,30.84994809]
[1745945639855,1e-08,149.24,149.21,30.85048666]
[1745945640054,1e-08,149.24,149.22,24.14866624]
[1745945640250,1e-08,149.24,149.21,30.85048666]
[1745945640440,24.14866625,149.24,149.2,30.85100069]
[1745945640919,18.64964887,149.24,149.2,30.85100069]
[1745945641255,18.64964887,149.24,149.21,24.14866624]
[1745945641854,18.64964887,149.24,149.22,24.14866624]
[1745945643743,1e-08,149.24,149.23,24.14866624]
[1745945645063,1e-08,149.24,149.22,24.14866624]
[1745945646050,1e-08,149.24,149.22,6.70130795]
[1745945646371,1e-08,149.24,149.22,30.84997419]
[1745945652491,1e-08,149.24,149.22,6.70130795]
[1745945653697,24.14866624,149.23,149.19,30.85152836]
[1745945653908,24.14866624,149.2,149.17,0.063]
[1745945654566,24.14866624,149.19,149.17,0.063]
[1745945655301,18.64964886,149.2,149.17,0.063]
[1745945655467,15.10918393,149.19,149.17,0.063]
[1745945656189,15.10918393,149.2,149.17,0.063]
[1745945656704,16.73798393,149.21,149.17,15.17218393]
[1745945656900,18.64964886,149.22,149.19,15.10918393]
[1745945657475,18.64964886,149.22,149.17,0.063]
[1745945657700,15.10918393,149.21,149.17,15.17218393]
[1745945657906,15.10918393,149.21,149.17,0.063]
[1745945660568,15.10918393,149.21,149.17,21.87554319]
[1745945661321,15.10918393,149.21,149.17,6.76635926]
[1745945661603,15.10918393,149.21,149.17,21.87554319]
[1745945662705,15.10918393,149.21,149.17,15.17218393]
[1745945664220,15.10918393,149.2,149.17,0.063]
[1745945664520,15.10918393,149.19,149.17,0.063]
[1745945664691,18.64964886,149.18,149.17,0.063]
[1745945665794,33.75883279,149.18,149.17,0.063]
[1745945666209,18.64964886,149.18,149.17,0.063]
[1745945669613,18.64964886,149.19,149.17,0.063]
[1745945669792,33.75883279,149.19,149.17,0.063]
[1745945670116,15.10918393,149.18,149.17,0.063]
[1745945671113,33.75883279,149.18,149.17,0.063]
[1745945673828,40.60430579,149.18,149.17,0.063]
[1745945674330,46.64450579,149.18,149.17,0.063]
[1745945674823,61.75368972,149.18,149.17,0.063]
[1745945675006,62.18017443,149.18,149.17,0.063]
[1745945677212,0.42648471,149.16,149.15,0.063]
[1745945677530,34.32747907,149.16,149.15,0.063]
[1745945678934,41.03168931,149.16,149.15,0.063]
[1745945679438,20.36641043,149.15,149.14,0.063]
[1745945679606,35.47559436,149.15,149.14,0.063]
[1745945680638,42.6067388,149.15,149.14,0.063]
[1745945681137,42.18025409,149.15,149.14,0.063]
[1745945684915,35.47559436,149.15,149.14,0.063]
[1745945685324,38.78074605,149.15,149.14,0.063]
[1745945685525,45.48540578,149.15,149.14,0.063]
[1745945687646,38.78074605,149.15,149.14,0.063]
[1745945687818,33.90099436,149.15,149.14,0.063]
[1745945689845,40.60565409,149.15,149.14,0.063]
[1745945690950,33.90099436,149.15,149.14,0.063]
[1745945691143,0.14216157,149.15,149.14,0.063]
[1745945691452,40.60565409,149.15,149.14,0.063]
[1745945693748,33.90099436,149.15,149.14,0.063]
[1745945695044,40.60565409,149.15,149.14,0.063]
[1745945699032,54.18565409,149.15,149.14,0.063]
[1745945703358,54.6121388,149.15,149.14,0.063]
[1745945704367,44.79181043,149.12,149.11,0.063]
[1745945704536,59.90099436,149.12,149.11,0.063]
[1745945706843,66.60700294,149.12,149.11,0.063]
[1745945708759,25.50006829,149.07,149.06,0.063]
[1745945708938,25.50006829,149.07,149.04,0.063]
[1745945708939,18.79181043,149.05,149.04,0.063]
[1745945709144,33.90099436,149.05,149.04,0.063]
[1745945710657,34.32747907,149.05,149.04,0.063]
[1745945710885,41.03663707,149.05,149.04,0.063]
[1745945711554,56.145821,149.05,149.04,0.063]
[1745945711746,41.03663707,149.05,149.04,0.063]
[1745945712358,56.145821,149.05,149.04,0.063]
[1745945712648,41.03663707,149.05,149.04,0.063]
[1745945713349,33.90099436,149.05,149.04,0.063]
[1745945714552,40.61015236,149.05,149.04,0.063]
[1745945715865,33.90099436,149.05,149.04,0.063]
[1745945716456,40.61015236,149.05,149.04,0.063]
[1745945717363,41.03663707,149.05,149.04,0.063]
[1745945717569,56.145821,149.05,149.04,0.063]
[1745945717873,44.933972,149.03,149.0,0.063]
[1745945718069,75.436663,149.03,149.0,0.063]
[1745945719549,75.01017829,149.03,149.0,0.063]
[1745945720774,59.90099436,149.03,149.0,0.063]
[1745945721076,33.90099436,149.03,149.0,0.063]
[1745945721376,33.75883279,149.03,149.0,0.063]
[1745945722274,33.90099436,149.03,149.0,0.063]
[1745945722468,49.01017829,149.03,149.0,0.063]
[1745945722677,33.90099436,149.03,149.0,0.063]
[1745945725986,47.48099436,149.03,149.0,0.063]
[1745945735414,69.30023666,149.03,149.0,0.063]
[1745945737099,95.72672137,149.03,149.0,0.063]
[1745945737299,19.21829514,149.01,149.0,0.063]
[1745945737614,60.32747907,149.01,149.0,0.063]
[1745945738027,0.42648471,148.99,148.98,0.063]
[1745945738310,18.79181043,148.96,148.88,16.61058393]
[1745945738486,62.59017829,148.96,148.88,16.61058393]
[1745945738682,62.59017829,148.96,148.89,15.10918393]
[1745945739099,47.48099436,148.96,148.9,21.82500853]
[1745945739316,47.48099436,148.96,148.9,6.7158246]
[1745945739633,47.48099436,148.96,148.9,21.82500853]
[1745945740731,47.48099436,148.96,148.9,6.7158246]
[1745945740937,47.48099436,148.96,148.9,21.82500853]
[1745945741111,54.19420596,148.96,148.9,21.82500853]
[1745945741316,47.48099436,148.96,148.9,6.7158246]
[1745945743220,69.30338989,148.96,148.9,6.7158246]
[1745945743640,69.30338989,148.96,148.89,6.77917841]
[1745945743938,69.7298746,148.96,148.89,0.063]
[1745945744243,95.7298746,148.96,148.89,0.063]
[1745945744627,19.21829514,148.95,148.89,0.063]
[1745945744825,34.32747907,148.95,148.89,0.063]
[1745945745643,41.04114137,148.95,148.89,0.063]
[1745945748058,18.64964886,148.9,148.89,0.063]
[1745945748239,47.48099436,148.9,148.89,0.063]
[1745945750331,54.62339579,148.9,148.89,0.063]
[1745945750645,69.73257972,148.9,148.89,0.063]
[1745945752859,54.62339579,148.9,148.89,0.063]
[1745945753549,69.73257972,148.9,148.89,0.063]
[1745945754657,69.59041815,148.9,148.89,0.063]
[1745945755752,69.73257972,148.9,148.89,0.063]
[1745945756139,45.21829514,148.88,148.87,0.063]
[1745945756458,60.32747907,148.88,148.87,0.063]
[1745945756642,67.04429798,148.88,148.87,0.063]
[1745945758464,67.04429798,148.88,148.83,0.063]
[1745945758465,44.79181043,148.84,148.83,0.063]
[1745945758646,80.19961838,148.84,148.83,0.063]
[1745945760863,80.62610309,148.84,148.83,0.063]
[1745945762788,65.51691916,148.84,148.83,0.063]
[1745945762945,65.51691916,148.84,148.8,0.063]
[1745945762946,60.32747907,148.81,148.8,0.063]
[1745945763151,60.32747907,148.81,148.74,1.5965]
[1745945763348,33.75883279,148.75,148.74,1.5965]
[1745945763571,33.75883279,148.75,148.74,0.063]
[1745945763770,33.90099436,148.75,148.74,0.063]
[1745945764347,49.01017829,148.75,148.74,0.063]
[1745945764573,49.436663,148.75,148.74,0.063]
[1745945764772,33.90099436,148.75,148.74,0.063]
[1745945765282,49.436663,148.75,148.74,0.063]
[1745945765465,56.15935207,148.75,148.74,0.063]
[1745945765776,19.21829514,148.74,148.66,8.222]
[1745945765959,19.21829514,148.74,148.66,30.05791444]
[1745945766169,33.75883279,148.69,148.66,14.94873051]
[1745945766470,33.75883279,148.69,148.66,8.222]
[1745945766661,15.10918393,148.68,148.66,8.222]
[1745945766862,0.14216157,148.69,148.66,8.222]
[1745945767072,15.10918393,148.67,148.66,8.222]
[1745945767277,0.14216157,148.69,148.66,8.222]
[1745945767585,15.10918393,148.67,148.66,8.222]
[1745945767975,15.10918393,148.67,148.63,23.47393554]
[1745945768172,15.10918393,148.67,148.63,8.36475161]
[1745945768360,15.10918393,148.67,148.63,23.47393554]
[1745945768684,15.10918393,148.66,148.63,8.36475161]
[1745945768885,18.64964886,148.65,148.63,1.6368]
[1745945769090,33.75883279,148.65,148.63,1.6368]
[1745945769379,15.10918393,148.64,148.63,1.6368]
[1745945769590,43.00131421,148.65,148.63,1.6368]
[1745945769758,18.64964886,148.65,148.63,8.36490486]
[1745945769962,43.00131421,148.65,148.63,1.6368]
[1745945770156,18.64964886,148.65,148.63,1.6368]
[1745945770374,43.00131421,148.65,148.63,1.6368]
[1745945770858,18.64964886,148.65,148.63,1.6368]
[1745945771060,18.64964886,148.65,148.63,8.36491022]
[1745945771276,43.00131421,148.65,148.63,1.6368]
[1745945771462,18.64964886,148.65,148.63,8.36484026]
[1745945771783,0.14216157,148.74,148.64,24.35166535]
[1745945771967,18.79181043,148.72,148.67,24.35166535]
[1745945772289,24.35166535,148.71,148.67,24.35166535]
[1745945772674,18.64964886,148.7,148.67,24.35166535]
[1745945772985,18.64964886,148.7,148.68,6.72585418]
[1745945773864,18.64964886,148.69,148.67,6.72614062]
[1745945774066,43.00131421,148.69,148.65,31.07846035]
[1745945774278,43.00131421,148.67,148.65,6.726795]
[1745945774586,18.64964886,148.65,148.64,6.7275986]
[1745945774788,18.64964886,148.65,148.63,1.6368]
[1745945774964,24.35166535,148.66,148.63,32.71640196]
[1745945774965,18.79181043,148.66,148.63,32.71640196]
[1745945775492,18.64964886,148.66,148.63,32.71640196]
[1745945775675,18.64964886,148.66,148.64,24.35166535]
[1745945776787,18.64964886,148.66,148.65,6.72721157]
[1745945777370,13.6,148.67,148.65,31.07887692]
[1745945777589,18.64964886,148.69,148.66,24.35166535]
[1745945778188,43.14347578,148.7,148.66,24.35166535]
[1745945778493,43.14347578,148.7,148.67,6.72630658]
[1745945778999,18.64964886,148.68,148.67,6.72630658]
[1745945779598,18.64964886,148.67,148.64,6.72766415]
[1745945779800,43.00131421,148.67,148.64,6.72766415]
[1745945779998,18.64964886,148.67,148.64,31.0793295]
[1745945780299,18.64964886,148.68,148.66,24.35166535]
[1745945780474,43.00131421,148.69,148.64,6.72766415]
[1745945780797,24.49382692,148.68,148.64,31.0793295]
[1745945781402,24.49382692,148.68,148.64,24.35166535]
[1745945781698,18.64964886,148.66,148.63,25.98846535]
[1745945781898,0.14216157,148.65,148.62,6.3963]
[1745945782496,0.14216157,148.65,148.62,30.74796535]
[1745945782882,18.64964886,148.66,148.63,24.35166535]
[1745945783416,0.14216157,148.65,148.59,34.31634675]
[1745945783577,18.64964886,148.64,148.59,34.31634675]
[1745945783780,18.64964886,148.64,148.61,24.35166535]
[1745945784106,24.35166535,148.64,148.6,24.35166535]
[1745945784277,43.00131421,148.63,148.59,27.5866]
[1745945784612,24.35166535,148.62,148.59,1.5866]
[1745945784809,18.64964886,148.63,148.59,25.93826535]
[1745945785301,18.64964886,148.63,148.59,1.5866]
[1745945785476,18.64964886,148.63,148.59,25.93826535]
[1745945786103,6.86946879,148.65,148.61,24.35166535]
[1745945786280,18.64964886,148.63,148.61,24.35166535]
[1745945786479,18.64964886,148.63,148.6,24.35166535]
[1745945787299,43.14347578,148.65,148.59,8.31633358]
[1745945788004,18.64964886,148.63,148.59,1.5866]
[1745945788178,18.64964886,148.63,148.6,24.35166535]
[1745945788377,18.64964886,148.64,148.61,24.35166535]
[1745945788884,49.72898659,148.64,148.6,24.35166535]
[1745945789218,18.64964886,148.62,148.59,1.5866]
[1745945789703,18.64964886,148.62,148.59,25.93826535]
[1745945791395,18.64964886,148.61,148.59,0.063]
[1745945791702,43.00131421,148.61,148.59,0.063]
[1745945791883,18.64964886,148.61,148.59,0.063]
[1745945794620,43.00131421,148.61,148.59,0.063]
[1745945795511,49.73038029,148.61,148.59,0.063]
[1745945795684,63.33038029,148.61,148.59,0.063]
[1745945796085,43.14347578,148.6,148.59,0.063]
[1745945797188,43.56996049,148.6,148.59,0.063]
[1745945797398,50.29943559,148.6,148.59,0.063]
[1745945800122,50.29943559,148.6,148.55,0.9387189]
[1745945800123,18.64964886,148.57,148.55,0.9387189]
[1745945800327,0.56864628,148.58,148.55,0.9387189]
[1745945800328,56.60131421,148.56,148.55,0.9387189]
[1745945801327,56.74347578,148.56,148.55,0.9387189]
[1745945801621,32.39181043,148.56,148.55,0.9387189]
[1745945801800,63.4747628,148.56,148.55,0.9387189]
[1745945803228,63.90124751,148.56,148.55,0.9387189]
[1745945805223,88.25291286,148.56,148.55,0.9387189]
[1745945805618,45.21829514,148.55,148.51,0.063]
[1745945805842,43.28563735,148.52,148.51,0.063]
[1745945806348,43.14347578,148.52,148.51,0.063]
[1745945806637,43.56996049,148.52,148.51,0.063]
[1745945806833,43.14347578,148.52,148.51,0.063]
[1745945807450,49.87657569,148.52,148.51,0.063]
[1745945807618,50.3030604,148.52,148.51,0.063]
[1745945808016,0.42648471,148.5,148.45,0.063]
[1745945808223,24.49382692,148.46,148.45,0.063]
[1745945808428,0.14216157,148.47,148.45,0.063]
[1745945808634,43.00131421,148.46,148.45,0.063]
[1745945809417,13.6,148.49,148.45,0.063]
[1745945809418,18.64964886,148.48,148.45,0.063]
[1745945809623,18.64964886,148.48,148.45,24.41466535]
[1745945809822,43.00131421,148.48,148.45,0.063]
[1745945810319,24.35166535,148.5,148.46,24.35166535]
[1745945810817,43.00131421,148.49,148.45,24.41466535]
[1745945811021,24.35166535,148.48,148.45,0.063]
[1745945811220,24.35166535,148.49,148.45,24.41466535]
[1745945811421,42.83046797,148.55,148.47,24.35166535]
[1745945811723,38.09382692,148.54,148.45,24.41466535]
[1745945811930,24.35166535,148.5,148.45,24.41466535]
[1745945812127,24.35166535,148.49,148.45,0.063]
[1745945812442,24.35166535,148.52,148.48,24.35166535]
[1745945813049,24.35166535,148.51,148.47,24.35166535]
[1745945813222,24.35166535,148.5,148.46,24.35166535]
[1745945813421,18.64964886,148.53,148.48,24.35166535]
[1745945813627,24.35166535,148.52,148.48,24.35166535]
[1745945813824,24.35166535,148.51,148.45,6.79892289]
[1745945814037,24.35166535,148.51,148.47,24.35166535]
[1745945814219,24.35166535,148.51,148.4,59.38922843]
[1745945814220,20.0,148.36,148.23,6.4998]
[1745945814538,24.35166535,148.37,148.31,24.35166535]
[1745945814737,18.64964886,148.36,148.32,24.35166535]
[1745945814918,1.34679191,148.41,148.34,24.35166535]
[1745945815122,0.14216157,148.39,148.35,24.35166535]
[1745945815324,43.00131421,148.38,148.32,24.35166535]
[1745945815848,43.00131421,148.38,148.33,24.35166535]
[1745945816025,18.64964886,148.38,148.33,24.35166535]
[1745945816228,18.64964886,148.38,148.31,6.74242901]
[1745945816229,20.13860234,148.43,148.35,24.35166535]
[1745945816438,20.13860234,148.43,148.32,6.611]
[1745945816439,24.35166535,148.42,148.37,24.35166535]
[1745945816630,1.34679191,148.42,148.35,24.35166535]
[1745945816829,24.35166535,148.41,148.36,24.35166535]
[1745945817026,24.35166535,148.41,148.35,24.35166535]
[1745945817439,1.34679191,148.42,148.36,24.35166535]
[1745945817640,1.34679191,148.42,148.33,6.74172453]
[1745945817641,24.35166535,148.4,148.33,6.74172453]
[1745945817843,24.35166535,148.41,148.36,24.35166535]
[1745945818164,24.35166535,148.41,148.33,23.59603586]
[1745945818349,24.35166535,148.41,148.36,24.35166535]
[1745945818527,15.10679191,148.44,148.38,24.35166535]
[1745945818726,24.35166535,148.43,148.39,24.35166535]
[1745945818929,25.69845726,148.44,148.39,24.35166535]
[1745945819125,45.4501861,148.45,148.4,24.35166535]
[1745945819126,69.80185145,148.45,148.4,24.35166535]
[1745945819824,26.65837567,148.45,148.41,24.35166535]
[1745945820022,26.65837567,148.45,148.42,24.35166535]
[1745945820226,24.35166535,148.46,148.4,23.58458849]
[1745945820425,24.35166535,148.46,148.4,6.73822731]
[1745945820631,25.69845726,148.49,148.44,24.35166535]
[1745945820840,25.69845726,148.49,148.4,47.93625384]
[1745945821024,24.35166535,148.49,148.45,24.35166535]
[1745945821228,24.35166535,148.49,148.44,24.35166535]
[1745945821427,24.35166535,148.48,148.44,24.35166535]
[1745945821926,24.35166535,148.49,148.45,6.73627484]
[1745945823450,24.35166535,148.48,148.45,6.73627484]
[1745945823651,24.35166535,148.49,148.45,31.08794019]
[1745945823848,18.79181043,148.5,148.45,31.08794019]
[1745945824052,24.35166535,148.49,148.45,6.73627484]
[1745945824236,24.35166535,148.49,148.45,31.08794019]
[1745945825147,1.34679191,148.51,148.45,31.08794019]
[1745945825451,26.0,148.55,148.49,24.35166535]
[1745945825681,24.35166535,148.53,148.49,24.35166535]
[1745945825828,25.69845726,148.54,148.5,31.08563019]
[1745945826839,24.35166535,148.54,148.5,31.08563019]
[1745945827244,20.13860234,148.55,148.5,31.08563019]
[1745945827452,24.35166535,148.54,148.49,24.35166535]
[1745945827652,20.13860234,148.55,148.49,24.35166535]
[1745945827856,24.35166535,148.53,148.49,24.35166535]
[1745945828039,24.35166535,148.53,148.46,23.57537383]
[1745945828040,24.35166535,148.54,148.5,24.35166535]
[1745945828346,24.35166535,148.53,148.46,23.57537383]
[1745945828543,24.35166535,148.53,148.49,24.35166535]
[1745945828752,24.35166535,148.54,148.5,24.35166535]
[1745945829663,24.35166535,148.53,148.49,24.35166535]
[1745945830168,24.35166535,148.52,148.47,6.73536741]
[1745945830356,24.35166535,148.52,148.48,24.35166535]
[1745945830660,24.35166535,148.5,148.44,23.57855025]
[1745945830876,24.35166535,148.51,148.44,23.57855025]
[1745945831037,24.35166535,148.51,148.47,24.35166535]
[1745945831240,24.35166535,148.49,148.44,6.73672864]
[1745945831489,24.35166535,148.5,148.46,24.35166535]
[1745945831661,24.35166535,148.51,148.47,24.35166535]
[1745945832674,24.35166535,148.5,148.46,24.35166535]
[1745945832864,24.35166535,148.49,148.45,31.08784176]
[1745945833361,24.35166535,148.47,148.42,6.73763643]
[1745945833547,1.34679191,148.49,148.43,24.35166535]